bitfinex-derivatives/quotes_SOLF0:USTF0_20250507
["timestamp","ask_amount","ask_price","bid_price","bid_amount"]
[1746641710439,11.10545149,145.51,145.43,6.8746]
[1746641710639,2.1849,145.5,145.39,39.9]
[1746641711741,2.1849,145.5,145.44,6.8742]
[1746641711742,6.8734,145.47,145.44,6.8742]
[1746641711940,39.9,145.49,145.39,39.9]
[1746641712348,6.8739,145.46,145.43,6.8749]
[1746641712841,6.8744,145.45,145.42,6.8752]
[1746641713034,6.8744,145.45,145.39,39.9]
[1746641713234,2.1928,145.48,145.39,39.9]
[1746641714441,6.8739,145.46,145.43,6.8747]
[1746641714837,6.8739,145.46,145.44,1.37513751]
[1746641715142,6.8734,145.47,145.44,8.24943751]
[1746641715635,39.9,145.49,145.44,1.37513751]
[1746641716036,2.1835,145.56,145.44,1.37513751]
[1746641716243,6.8711,145.52,145.49,6.872]
[1746641716444,39.9,145.53,145.49,6.872]
[1746641716744,6.8711,145.52,145.49,6.872]
[1746641718851,6.8706,145.53,145.5,6.8717]
[1746641719145,6.8702,145.54,145.47,39.9]
[1746641719342,2.1835,145.56,145.47,39.9]
[1746641719653,6.8701,145.54,145.47,39.9]
[1746641720048,2.1835,145.56,145.47,39.9]
[1746641720348,6.8697,145.55,145.52,6.8707]
[1746641720744,2.1835,145.56,145.47,39.9]
[1746641721547,2.1835,145.56,145.44,5.51703751]
[1746641721846,13.28895149,145.56,145.44,5.51703751]
[1746641722550,13.28895149,145.56,145.44,3.46603751]
[1746641722851,11.10545149,145.53,145.44,1.37513751]
[1746641723149,6.8736,145.47,145.44,8.24963751]
[1746641723352,39.9,145.48,145.44,8.24963751]
[1746641723647,6.8741,145.45,145.44,1.37513751]
[1746641724046,11.10545149,145.47,145.37,2.1515]
[1746641724242,6.8754,145.43,145.4,6.8762]
[1746641724440,11.10545149,145.47,145.38,1.37570504]
[1746641724849,6.8748,145.44,145.41,6.8758]
[1746641725248,11.10545149,145.47,145.41,6.8758]
[1746641725448,6.8749,145.44,145.41,6.8758]
[1746641725649,6.8749,145.44,145.4,6.8763]
[1746641725848,6.8749,145.44,145.38,1.37570504]
[1746641726152,39.9,145.48,145.38,1.37570504]
[1746641726450,39.9,145.48,145.44,6.8746]
[1746641726751,39.9,145.48,145.38,1.37570504]
[1746641726951,39.9,145.48,145.45,1.37504297]
[1746641727253,6.8737,145.46,145.45,1.37504297]
[1746641727549,6.8752,145.43,145.37,2.1515]
[1746641727752,11.10545149,145.47,145.37,2.1515]
[1746641727948,11.10545149,145.47,145.4,6.8763]
[1746641728148,6.8748,145.44,145.38,1.37570504]
[1746641728344,11.10545149,145.47,145.38,1.37570504]
[1746641728549,11.10545149,145.47,145.39,6.8767]
[1746641728749,2.003,145.46,145.38,1.37570504]
[1746641729144,2.0492,145.45,145.39,6.8767]
[1746641729342,39.64,145.44,145.38,1.37570504]
[1746641729643,39.64,145.44,145.42,6.8754]
[1746641730048,39.64,145.44,145.38,1.37570504]
[1746641730248,39.64,145.44,145.43,6.8751]
[1746641730754,39.64,145.44,145.43,1.37523207]
[1746641731754,46.5146,145.44,145.43,1.37523207]
[1746641732154,39.64,145.44,145.39,6.8767]
[1746641732355,39.64,145.44,145.35,2.1874]
[1746641734156,6.8757,145.42,145.39,6.8767]
[1746641734356,39.64,145.44,145.35,2.1874]
[1746641734861,50.74545149,145.44,145.33,43.7615]
[1746641735062,2.0494,145.43,145.33,43.7615]
[1746641735451,6.8764,145.41,145.33,43.7615]
[1746641735651,2.0494,145.43,145.33,43.7615]
[1746641735959,13.23235149,145.42,145.33,41.6845]
[1746641736161,6.8777,145.38,145.35,6.8786]
[1746641736656,39.64,145.39,145.3,2.0036]
[1746641737057,50.74545149,145.39,145.29,41.7188]
[1746641737558,2.0663,145.38,145.29,41.7188]
[1746641737761,6.8791,145.35,145.32,6.88]
[1746641738261,2.0663,145.38,145.32,6.88]
[1746641738659,2.0663,145.38,145.29,2.0788]
[1746641738859,2.0663,145.38,145.28,2.0708]
[1746641739059,2.0432,145.37,145.29,6.8813]
[1746641739257,2.0432,145.37,145.26,41.6436]
[1746641739460,6.8793,145.35,145.26,41.6436]
[1746641739759,39.64,145.35,145.26,41.6436]
[1746641739955,6.8797,145.34,145.26,41.6436]
[1746641740162,39.64,145.35,145.3,6.8808]
[1746641740356,39.64,145.35,145.26,41.6436]
[1746641740557,6.8796,145.34,145.26,41.6436]
[1746641740864,6.8796,145.34,145.3,6.8808]
[1746641741059,39.64,145.35,145.3,6.8808]
[1746641741259,39.64,145.35,145.26,41.6436]
[1746641741460,39.64,145.35,145.28,6.8818]
[1746641741967,6.8808,145.31,145.28,6.8818]
[1746641742373,41.7955,145.35,145.29,6.8816]
[1746641742571,6.8805,145.32,145.29,6.8816]
[1746641742872,41.7955,145.35,145.3,6.8812]
[1746641743073,6.8802,145.33,145.26,41.6436]
[1746641743273,41.7955,145.35,145.26,41.6436]
[1746641743475,41.7955,145.35,145.29,6.8815]
[1746641744169,41.7955,145.35,145.28,6.882]
[1746641744373,41.7955,145.35,145.26,41.6436]
[1746641744973,6.8794,145.34,145.26,41.6436]
[1746641745371,6.8794,145.34,145.31,6.8805]
[1746641745569,46.5191,145.35,145.26,41.6436]
[1746641745769,39.64,145.35,145.26,41.6436]
[1746641746573,39.66,145.39,145.28,11.10545149]
[1746641746879,1.9954,145.45,145.38,6.8774]
[1746641747174,39.66,145.43,145.33,39.66]
[1746641747478,39.66,145.43,145.34,2.0369]
[1746641747677,39.66,145.43,145.41,6.8757]
[1746641748175,39.66,145.47,145.37,39.66]
[1746641748375,6.8743,145.45,145.37,39.66]
[1746641749276,39.66,145.47,145.37,39.66]
[1746641749777,39.66,145.47,145.37,50.76545149]
[1746641750677,6.872,145.5,145.46,6.8737]
[1746641751068,596.5066,145.55,145.42,39.66]
[1746641751275,596.5066,145.55,145.43,17.20135149]
[1746641751471,594.48,145.55,145.5,6.8714]
[1746641751676,594.48,145.55,145.43,6.0959]
[1746641751677,601.3495,145.55,145.43,6.0959]
[1746641751887,594.48,145.55,145.43,6.0959]
[1746641752173,601.3496,145.55,145.5,6.8714]
[1746641752378,601.3496,145.55,145.43,6.0959]
[1746641752579,594.48,145.55,145.43,6.0959]
[1746641753277,596.6107,145.55,145.43,6.0959]
[1746641753478,6.8709,145.52,145.47,6.8728]
[1746641753681,596.6107,145.55,145.43,6.0959]
[1746641754580,6.8714,145.51,145.47,6.8732]
[1746641755380,39.64,145.52,145.48,6.8725]
[1746641755780,39.64,145.52,145.43,6.0959]
[1746641755977,39.64,145.52,145.5,6.8718]
[1746641756279,39.64,145.52,145.43,6.0959]
[1746641756481,594.48,145.55,145.5,6.8715]
[1746641756681,594.48,145.55,145.43,6.0959]
[1746641756977,6.8717,145.51,145.47,6.8728]
[1746641757281,39.64,145.52,145.43,6.0959]
[1746641757476,39.64,145.52,145.45,6.8738]
[1746641757682,39.64,145.52,145.43,6.0959]
[1746641758078,6.8714,145.51,145.47,6.8728]
[1746641758282,39.64,145.52,145.43,6.0959]
[1746641758580,46.5112,145.52,145.43,6.0959]
[1746641759082,6.8714,145.51,145.48,6.8727]
[1746641759283,39.64,145.52,145.43,6.0959]
[1746641759579,6.8695,145.55,145.43,6.0959]
[1746641759882,39.4,145.57,145.43,17.20135149]
[1746641760083,6.8702,145.54,145.43,17.20135149]
[1746641760284,39.4,145.57,145.43,17.20135149]
[1746641761485,39.4,145.57,145.44,13.7487]
[1746641762083,46.2685,145.57,145.44,13.7487]
[1746641762786,39.4,145.57,145.54,6.8696]
[1746641763480,39.4,145.57,145.49,39.38]
[1746641763682,39.4,145.57,145.5,6.301]
[1746641763880,46.2687,145.57,145.5,6.301]
[1746641764085,39.4,145.57,145.53,6.8702]
[1746641764285,39.4,145.57,145.5,4.2691]
[1746641764485,39.4,145.57,145.45,43.5089]
[1746641764787,39.4,145.57,145.45,45.681]
[1746641764989,46.2686,145.57,145.45,45.681]
[1746641765192,39.4,145.57,145.45,45.681]
[1746641765782,39.4,145.57,145.55,6.8691]
[1746641766386,39.4,145.57,145.54,6.8696]
[1746641766588,39.4,145.57,145.49,39.38]
[1746641766787,6.8692,145.56,145.49,39.38]
[1746641766988,39.4,145.57,145.49,39.38]
[1746641768088,605.22545149,145.62,145.49,39.38]
[1746641768089,39.38,145.61,145.49,39.38]
[1746641768489,39.38,145.61,145.5,1.37457044]
[1746641769291,6.8684,145.58,145.54,6.8696]
[1746641769491,6.8684,145.58,145.5,1.37457044]
[1746641769692,39.38,145.61,145.57,6.8685]
[1746641770096,39.38,145.61,145.51,2.1927]
[1746641770692,6.8676,145.59,145.56,6.8685]
[1746641770894,39.38,145.61,145.51,2.1927]
[1746641771794,46.2469,145.61,145.58,6.8677]
[1746641772195,39.38,145.61,145.52,4.1577]
[1746641772396,39.38,145.61,145.59,6.8673]
[1746641772897,6.8671,145.6,145.57,6.8682]
[1746641773096,39.38,145.61,145.53,39.38]
[1746641774002,46.2469,145.61,145.58,6.868]
[1746641774197,46.2469,145.61,145.53,39.38]
[1746641774198,39.38,145.61,145.53,39.38]
[1746641774500,39.38,145.61,145.58,6.8679]
[1746641775000,39.38,145.61,145.53,39.38]
[1746641776700,2.1345,145.63,145.53,39.38]
[1746641777004,9.0004,145.63,145.6,6.8668]
[1746641777400,9.0004,145.63,145.61,1.37353203]
[1746641777697,2.1345,145.63,145.61,1.37353203]
[1746641777904,2.0563,145.64,145.61,1.37353203]
[1746641778500,11.10545149,145.63,145.53,39.38]
[1746641779000,11.10545149,145.63,145.54,1.37419266]
[1746641779408,6.8687,145.57,145.54,8.24389266]
[1746641779605,39.36,145.59,145.54,1.37419266]
[1746641780607,39.36,145.59,145.58,6.868]
[1746641780807,50.46545149,145.63,145.54,1.37419266]
[1746641781008,39.36,145.63,145.54,1.37419266]
[1746641781711,6.8678,145.59,145.54,1.37419266]
[1746641782008,39.36,145.63,145.54,1.37419266]
[1746641782302,46.2259,145.63,145.6,6.8668]
[1746641782602,39.36,145.63,145.54,1.37419266]
[1746641783307,39.36,145.63,145.61,6.8665]
[1746641783507,39.36,145.63,145.55,2.0252]
[1746641783706,39.36,145.63,145.56,2.1044]
[1746641784408,39.36,145.63,145.61,6.8663]
[1746641784807,39.36,145.63,145.56,2.1044]
[1746641785110,39.36,145.63,145.62,6.8661]
[1746641785409,46.2257,145.63,145.56,2.1044]
[1746641785603,39.36,145.63,145.56,2.1044]
[1746641785805,39.36,145.63,145.55,2.0252]
[1746641786007,39.36,145.63,145.54,1.37419266]
[1746641786412,6.8683,145.58,145.54,1.37419266]
[1746641786707,39.36,145.63,145.56,6.8687]
[1746641786910,6.8679,145.59,145.56,6.8687]
[1746641787805,6.868,145.58,145.57,1.37390945]
[1746641788006,39.36,145.63,145.57,1.37390945]
[1746641788315,6.8679,145.59,145.57,1.37390945]
[1746641789215,6.868,145.58,145.57,1.37390945]
[1746641789417,50.46545149,145.63,145.57,1.37390945]
[1746641790317,39.36,145.63,145.57,1.37390945]
[1746641791412,6.8648,145.65,145.62,6.8659]
[1746641792213,6.8644,145.66,145.63,6.8654]
[1746641792418,43.4152,145.67,145.58,2.0084]
[1746641792815,43.4152,145.67,145.58,6.2443]
[1746641793309,6.8654,145.64,145.61,6.8663]
[1746641793917,43.4152,145.67,145.62,1.37343771]
[1746641794426,6.8652,145.65,145.62,1.37343771]
[1746641794721,43.4152,145.67,145.62,1.37343771]
[1746641795020,6.8654,145.64,145.62,1.37343771]
[1746641795414,43.4152,145.67,145.62,1.37343771]
[1746641795622,43.4152,145.67,145.59,6.8673]
[1746641795915,4.2352,145.67,145.6,1.37362637]
[1746641796113,6.8655,145.64,145.61,6.8663]
[1746641796310,4.2352,145.67,145.6,1.37362637]
[1746641796817,11.10545149,145.66,145.6,1.37362637]
[1746641797217,6.8666,145.61,145.6,1.37362637]
[1746641797518,39.16,145.65,145.55,39.16]
[1746641797713,39.16,145.65,145.55,40.53409824]
[1746641798416,39.16,145.65,145.57,6.868]
[1746641799224,39.16,145.65,145.55,1.37409824]
[1746641799521,11.10545149,145.63,145.55,1.37409824]
[1746641799724,6.8677,145.59,145.56,6.8686]
[1746641799924,39.16,145.61,145.55,1.37409824]
[1746641800221,6.8678,145.59,145.55,1.37409824]
[1746641800422,39.16,145.61,145.55,1.37409824]
[1746641800613,2.1019,145.6,145.55,1.37409824]
[1746641800814,3.9591,145.6,145.55,1.37409824]
[1746641801016,15.06455149,145.6,145.49,593.52]
[1746641801218,15.06455149,145.6,145.49,594.89466492]
[1746641801427,15.06455149,145.6,145.49,1.37466492]
[1746641801619,11.10545149,145.59,145.51,6.8709]
[1746641802026,6.8698,145.55,145.51,6.8709]
[1746641802325,39.16,145.57,145.52,6.8707]
[1746641802523,39.16,145.57,145.49,1.37466492]
[1746641803223,6.8707,145.53,145.49,1.37466492]
[1746641803422,39.16,145.57,145.49,1.37466492]
[1746641803822,39.16,145.57,145.49,8.24656492]
[1746641804226,39.16,145.57,145.49,1.37466492]
[1746641804417,39.16,145.57,145.5,6.8714]
[1746641804619,11.10545149,145.56,145.49,1.37466492]
[1746641804926,6.8718,145.5,145.49,1.37466492]
[1746641805425,6.8711,145.52,145.49,1.37466492]
[1746641805826,39.18,145.53,145.49,1.37466492]
[1746641806124,11.10545149,145.56,145.49,8.24666492]
[1746641806526,11.10545149,145.56,145.49,1.37466492]
[1746641807228,6.8717,145.51,145.49,1.37466492]
[1746641807425,39.18,145.55,145.49,1.37466492]
[1746641807725,6.8718,145.5,145.49,1.37466492]
[1746641808525,39.18,145.51,145.42,138.56104299]
[1746641808726,2.192,145.49,145.41,2.1237]
[1746641809324,2.192,145.49,145.44,6.8743]
[1746641809524,2.192,145.49,145.41,2.1237]
[1746641810224,6.873,145.48,145.41,2.1237]
[1746641810526,39.18,145.5,145.46,6.8734]
[1746641810720,46.052,145.5,145.46,6.8734]
[1746641810922,39.18,145.5,145.41,2.1237]
[1746641811223,39.18,145.5,145.42,2.0124]
[1746641811424,39.18,145.5,145.43,39.18]
[1746641811623,2.192,145.54,145.43,39.18]
[1746641811624,41.372,145.54,145.44,2.1513]
[1746641811926,48.2421,145.54,145.44,2.1513]
[1746641812124,41.372,145.54,145.49,6.8719]
[1746641812327,41.372,145.54,145.44,2.1513]
[1746641812726,41.372,145.54,145.48,6.8723]
[1746641812922,6.8711,145.52,145.44,2.1513]
[1746641813123,41.372,145.54,145.44,2.1513]
[1746641813433,52.47745149,145.54,145.44,2.1513]
[1746641813825,6.8717,145.51,145.47,6.8732]
[1746641814232,52.47745149,145.54,145.44,2.1513]
[1746641814423,6.871,145.52,145.44,2.1513]
[1746641814624,41.372,145.54,145.44,2.1513]
[1746641814826,41.372,145.54,145.49,6.872]
[1746641815025,6.8708,145.53,145.49,6.872]
[1746641815221,39.18,145.54,145.44,2.1513]
[1746641815423,41.3361,145.58,145.45,11.10545149]
[1746641815727,6.8686,145.57,145.46,1.37494843]
[1746641815926,41.3361,145.58,145.47,39.2]
[1746641816121,41.3361,145.58,145.48,1.9834]
[1746641817131,6.8701,145.54,145.51,6.871]
[1746641817325,41.3361,145.58,145.48,1.9834]
[1746641817523,39.2,145.58,145.49,2.059]
[1746641817924,39.2,145.58,145.5,2.043]
[1746641818128,39.2,145.58,145.51,39.2]
[1746641818929,6.8686,145.57,145.54,6.8696]
[1746641819130,39.2,145.58,145.51,39.2]
[1746641819430,6.8687,145.57,145.54,6.8698]
[1746641819730,39.2,145.58,145.54,6.8698]
[1746641820232,6.8687,145.57,145.54,6.8698]
[1746641820531,6.8687,145.57,145.53,6.8702]
[1746641820825,39.2,145.58,145.51,39.2]
[1746641821027,39.2,145.58,145.48,1.9834]
[1746641821429,11.10545149,145.56,145.48,1.9834]
[1746641821626,2.0818,145.55,145.46,1.37494843]
[1746641821828,11.10545149,145.53,145.46,1.37494843]
[1746641822031,11.10545149,145.53,145.46,8.24834843]
[1746641822330,11.10545149,145.53,145.46,1.37494843]
[1746641822726,6.8722,145.5,145.46,8.24834843]
[1746641823029,11.10545149,145.53,145.46,8.24834843]
[1746641823226,6.8713,145.51,145.47,6.8727]
[1746641823432,39.0,145.54,145.46,1.37494843]
[1746641824531,6.8711,145.52,145.49,6.8721]
[1746641824830,39.0,145.54,145.46,1.37494843]
[1746641825033,39.0,145.54,145.51,6.8713]
[1746641825234,39.0,145.54,145.46,1.37494843]
[1746641825830,39.0,145.54,145.51,6.8709]
[1746641826032,39.0,145.54,145.46,1.37494843]
[1746641826834,6.8718,145.5,145.47,6.8729]
[1746641827034,39.0,145.54,145.46,1.37494843]
[1746641827625,39.0,145.54,145.44,2.0114]
[1746641827626,11.10545149,145.53,145.44,2.0114]
[1746641827827,2.0807,145.52,145.44,2.0114]
[1746641828026,6.8731,145.48,145.44,2.0114]
[1746641828324,39.0,145.5,145.44,2.0114]
[1746641829728,45.8719,145.5,145.48,6.8727]
[1746641830029,39.0,145.5,145.48,6.8727]
[1746641830228,2.0807,145.52,145.44,2.0114]
[1746641830229,6.8713,145.51,145.44,2.0114]
[1746641830432,2.0807,145.52,145.44,2.0114]
[1746641830929,2.0807,145.52,145.48,6.8727]
[1746641831230,39.0,145.54,145.44,2.0114]
[1746641831231,39.0,145.54,145.46,39.0]
[1746641831424,6.8704,145.53,145.5,6.8715]
[1746641831627,39.0,145.54,145.47,2.09]
[1746641831827,39.0,145.54,145.46,39.0]
[1746641832534,39.0,145.54,145.52,6.8708]
[1746641832931,41.0578,145.58,145.47,4.0697]
[1746641834227,45.8683,145.58,145.47,15.17515149]
[1746641834427,39.0,145.58,145.47,16.55000541]
[1746641834932,6.8672,145.6,145.57,6.8685]
[1746641835433,6.8672,145.6,145.56,6.8687]
[1746641835637,6.8675,145.59,145.56,6.8687]
[1746641835840,11.10545149,145.62,145.53,2.086]
[1746641836431,41.0781,145.63,145.56,6.8689]
[1746641836730,6.8668,145.61,145.53,2.086]
[1746641836936,41.0781,145.63,145.53,2.086]
[1746641837140,41.0781,145.63,145.59,6.8674]
[1746641837437,47.944,145.63,145.59,6.8674]
[1746641837734,41.0781,145.63,145.54,2.1959]
[1746641838033,39.0,145.63,145.54,2.1959]
[1746641839038,39.0,145.63,145.53,2.086]
[1746641839240,6.8671,145.6,145.53,2.086]
[1746641839536,6.8671,145.6,145.57,6.8683]
[1746641839742,6.8667,145.61,145.53,2.086]
[1746641840137,39.0,145.63,145.53,2.086]
[1746641840328,45.8659,145.63,145.53,2.086]
[1746641840529,39.0,145.63,145.53,2.086]
[1746641841533,6.8664,145.62,145.53,2.086]
[1746641841738,39.0,145.63,145.53,2.086]
[1746641842837,39.0,145.63,145.58,6.8678]
[1746641843042,39.0,145.63,145.53,2.086]
[1746641843341,39.0,145.63,145.56,6.8689]
[1746641843642,39.0,145.63,145.53,2.086]
[1746641843942,6.8684,145.58,145.52,39.0]
[1746641844741,39.0,145.63,145.52,39.0]
[1746641845241,39.0,145.63,145.59,6.8672]
[1746641845538,39.0,145.63,145.52,39.0]
[1746641845734,39.0,145.63,145.61,6.8666]
[1746641846534,39.0,145.63,145.62,6.8661]
[1746641846731,39.0,145.63,145.57,1.9993]
[1746641846937,1.9868,145.65,145.57,1.9993]
[1746641847239,6.8652,145.64,145.58,2.0143]
[1746641847638,6.8652,145.64,145.61,6.8662]
[1746641847839,6.8649,145.65,145.58,2.0143]
[1746641848232,593.94,145.66,145.58,2.0143]
[1746641848436,41.0742,145.67,145.58,2.0143]
[1746641848837,6.8646,145.66,145.58,2.0143]
[1746641849038,41.0742,145.67,145.62,6.8657]
[1746641849238,41.0742,145.67,145.58,2.0143]
[1746641850132,41.0742,145.67,145.61,6.8663]
[1746641850336,6.8654,145.64,145.61,6.8663]
[1746641850843,41.0742,145.67,145.58,2.0143]
[1746641851444,47.9384,145.67,145.58,2.0143]
[1746641851949,41.0742,145.67,145.63,6.8653]
[1746641852148,41.0742,145.67,145.58,2.0143]
[1746641852646,6.8654,145.64,145.61,6.8665]
[1746641853551,41.0742,145.67,145.58,2.0143]
[1746641853744,41.0742,145.67,145.57,1.9993]
[1746641855146,605.26375149,145.73,145.57,1.9993]
[1746641855344,38.76,145.71,145.58,1.37381508]
[1746641856154,6.8635,145.68,145.58,1.37381508]
[1746641856349,38.76,145.71,145.58,1.37381508]
[1746641856545,38.76,145.71,145.58,12.47926657]
[1746641856847,45.6222,145.71,145.68,6.8629]
[1746641857452,38.76,145.71,145.68,6.8629]
[1746641857947,38.76,145.71,145.63,38.76]
[1746641858459,2.1348,145.72,145.7,6.8621]
[1746641858848,38.76,145.75,145.64,4.1665]
[1746641859048,38.76,145.75,145.67,38.76]
[1746641860156,8.8519,145.78,145.74,6.8605]
[1746641860659,8.8519,145.78,145.67,38.76]
[1746641860857,8.8519,145.78,145.68,2.0507]
[1746641861358,1.993,145.78,145.68,2.0507]
[1746641862250,1.993,145.78,145.77,6.859]
[1746641862752,1.993,145.78,145.71,38.76]
[1746641863566,1.993,145.78,145.72,2.1943]
[1746641863752,38.76,145.79,145.78,6.8586]
[1746641864154,38.76,145.79,145.72,2.1943]
[1746641864660,38.74,145.88,145.73,11.10545149]
[1746641864865,45.594,145.88,145.84,6.8554]
[1746641865269,45.594,145.88,145.8,38.74]
[1746641865660,38.74,145.88,145.8,38.74]
[1746641865864,62.83260409,145.88,145.8,38.74]
[1746641866162,69.68650409,145.88,145.8,38.74]
[1746641866362,24.09260409,145.88,145.87,6.8543]
[1746641866562,64.24694424,145.9,145.84,38.74]
[1746641866761,96.37041636,145.91,145.85,49.84545149]
[1746641866963,96.37041636,145.91,145.9,6.8529]
[1746641867260,160.61736061,145.92,145.89,38.74]
[1746641867461,160.61736061,145.92,145.91,6.8525]
[1746641867761,200.77170076,145.94,145.89,38.74]
[1746641868156,200.77170076,145.94,145.93,6.8515]
[1746641868665,190.41400076,145.94,145.93,6.8515]
[1746641868863,27.85619327,145.94,145.93,45.5715]
[1746641869057,240.92604092,145.98,145.94,6.8511]
[1746641869264,118.45162315,145.95,145.94,6.8511]
[1746641869463,6.8481,146.01,145.93,38.72]
[1746641870264,2.0889,146.02,145.93,38.72]
[1746641870766,2.0889,146.02,145.99,6.8485]
[1746641870964,2.0889,146.02,145.93,38.72]
[1746641871468,2.0889,146.02,146.01,556.2103728]
[1746641871863,2.1553,146.04,146.01,556.2103728]
[1746641872068,4.0958,146.08,146.01,556.2103728]
[1746641872366,6.8454,146.07,146.03,6.8465]
[1746641872568,2.1043,146.08,146.03,6.8465]
[1746641872868,2.1043,146.08,146.01,594.9103728]
[1746641873867,2.1043,146.08,146.01,38.7]
[1746641874169,0.29824,146.09,146.01,38.7]
[1746641874565,0.29824,146.09,146.05,6.8458]
[1746641874756,0.29824,146.09,146.01,38.7]
[1746641875568,6.8447,146.08,146.01,38.7]
[1746641875768,38.97824,146.09,146.01,38.7]
[1746641876162,45.82274,146.09,146.01,38.7]
[1746641876664,6.8446,146.08,146.04,6.8463]
[1746641876967,28.7016403,146.09,146.02,14.20593648]
[1746641877466,6.845,146.07,146.03,6.8465]
[1746641877670,28.7016403,146.09,146.01,38.7]
[1746641878668,6.8458,146.06,146.01,45.5476]
[1746641878971,28.7016403,146.09,146.01,38.7]
[1746641879468,17.87382059,146.05,145.95,38.48]
[1746641879772,2.1631,146.04,145.95,38.48]
[1746641880682,2.1631,146.04,146.01,6.8477]
[1746641880970,2.1631,146.04,145.95,38.48]
[1746641881870,9.0097,146.04,146.0,6.8479]
[1746641882274,38.48,146.05,145.95,38.48]
[1746641882573,6.8469,146.03,145.95,38.48]
[1746641882773,38.48,146.05,145.95,38.48]
[1746641883271,38.48,146.06,145.95,38.48]
[1746641883674,4.253,146.1,145.97,17.87382059]
[1746641883973,4.253,146.1,145.98,3.49525069]
[1746641884176,4.253,146.1,145.99,39.84995684]
[1746641884371,4.253,146.1,146.0,1.36986301]
[1746641884571,4.253,146.1,146.0,19.2436836]
[1746641884771,2.1043,146.1,146.0,19.2436836]
[1746641885070,2.1043,146.1,146.08,6.8442]
[1746641885468,2.1043,146.1,146.05,38.48]
[1746641885670,6.8448,146.08,146.04,6.8462]
[1746641885870,2.1043,146.1,146.01,38.48]
[1746641886270,6.8448,146.08,146.01,38.48]
[1746641886675,2.1043,146.1,146.01,38.48]
[1746641887879,8.9481,146.1,146.06,6.8451]
[1746641888079,2.1043,146.1,146.01,38.48]
[1746641888275,2.1043,146.1,146.02,55.85491407]
[1746641888474,6.8443,146.09,146.02,55.85491407]
[1746641888676,38.48,146.12,146.02,55.85491407]
[1746641889784,6.8447,146.08,146.04,6.8461]
[1746641889973,38.48,146.12,146.02,55.85491407]
[1746641890283,45.3229,146.12,146.08,6.8441]
[1746641890476,38.48,146.12,146.05,32.24407957]
[1746641890876,6.8436,146.1,146.07,6.8447]
[1746641891584,38.48,146.12,146.08,6.8444]
[1746641891882,38.48,146.12,146.05,70.70407957]
[1746641892086,45.3231,146.12,146.08,6.8444]
[1746641892378,38.48,146.12,146.08,6.8444]
[1746641892679,6.8433,146.11,146.08,6.8444]
[1746641894678,38.48,146.12,146.05,46.52101989]
[1746641894880,38.48,146.12,146.05,38.46]
[1746641895681,6.8436,146.1,146.07,6.8447]
[1746641896472,38.48,146.12,146.0,9.4308829]
[1746641896676,13.01161983,146.09,146.0,9.4308829]
[1746641896878,6.8477,146.02,146.0,9.4308829]
[1746641897079,6.8477,146.02,146.0,8.06101989]
[1746641897376,10.98201983,146.06,146.0,8.06101989]
[1746641897681,10.98201983,146.03,145.97,1e-08]
[1746641897880,10.98201983,146.0,145.97,1e-08]
[1746641898178,6.8492,145.98,145.97,1e-08]
[1746641899680,17.88514904,146.01,145.92,6.8518]
[1746641900182,17.88514904,146.01,145.89,2.0797]